bitfinex-derivatives/quotes_BTCF0:USTF0_20250722
["timestamp","ask_amount","ask_price","bid_price","bid_amount"]
[1753176172307,0.399338,118130.0,118120.0,0.61998189]
[1753176173107,0.401338,118130.0,118120.0,0.61998189]
[1753176173510,0.401338,118130.0,118120.0,0.33553022]
[1753176174108,0.401338,118130.0,118120.0,0.61998189]
[1753176174508,0.721338,118130.0,118120.0,0.33553022]
[1753176174816,0.89065,118130.0,118120.0,0.2453186]
[1753176175008,1.17510167,118130.0,118120.0,0.2453186]
[1753176175315,0.89065,118130.0,118120.0,0.2453186]
[1753176175516,1.25145,118130.0,118120.0,0.2453186]
[1753176175812,1.25145,118130.0,118120.0,0.19970923]
[1753176176406,2.15378167,118130.0,118120.0,0.19970923]
[1753176176610,2.15378167,118130.0,118120.0,0.03045693]
[1753176176913,2.15378167,118130.0,118120.0,0.19970933]
[1753176177612,1.86933,118130.0,118120.0,0.19970933]
[1753176177810,2.15378167,118130.0,118120.0,0.19970933]
[1753176179715,2.15378167,118130.0,118120.0,0.03045693]
[1753176179909,0.2585828,118120.0,118110.0,0.29949467]
[1753176180112,1.35480447,118120.0,118110.0,0.29949467]
[1753176180409,1.37217723,118120.0,118110.0,0.04560937]
[1753176180612,0.3995815,118100.0,118090.0,0.3373734]
[1753176180825,1.6874615,118100.0,118090.0,0.2116076]
[1753176181011,1.97211317,118100.0,118090.0,0.2116076]
[1753176181211,1.6876615,118100.0,118090.0,0.2116076]
[1753176182019,1.6888615,118100.0,118090.0,0.2218876]
[1753176182313,1.6888615,118100.0,118090.0,1.43031927]
[1753176182314,0.11982,118100.0,118090.0,1.43031927]
[1753176182917,0.2891015,118100.0,118090.0,1.43031927]
[1753176183221,0.3195515,118100.0,118090.0,1.43031927]
[1753176183412,0.3215515,118100.0,118090.0,1.43031927]
[1753176183608,0.3693415,118100.0,118090.0,1.43031927]
[1753176183816,0.20006,118100.0,118090.0,1.43031927]
[1753176184116,0.12182,118100.0,118090.0,1.43031927]
[1753176184419,0.11882,118100.0,118090.0,1.43031927]
[1753176184623,0.11882,118100.0,118090.0,1.47594135]
[1753176184822,1.61882,118100.0,118090.0,1.47594135]
[1753176185220,1.61882,118100.0,118090.0,1.13594135]
[1753176185523,1.61882,118100.0,118090.0,1.51594135]
[1753176186627,1.5002,118100.0,118090.0,1.53494692]
[1753176187923,1.5002,118100.0,118090.0,1.83134692]
[1753176188124,0.0002,118100.0,118090.0,1.83134692]
[1753176190724,0.0002,118100.0,118090.0,1.84655429]
[1753176192332,0.0002,118100.0,118090.0,2.46143429]
[1753176193430,0.0002,118100.0,118090.0,1.84655429]
[1753176193624,0.0002,118100.0,118090.0,2.46131429]
[1753176194029,0.0002,118100.0,118090.0,1.84655429]
[1753176194328,0.0002,118100.0,118090.0,1.19210262]
[1753176194518,0.0002,118100.0,118090.0,2.46123429]
[1753176194719,0.04626,118100.0,118090.0,2.46123429]
[1753176195329,0.0002,118100.0,118090.0,2.46123429]
[1753176196334,0.0002,118100.0,118090.0,2.40040484]
[1753176197428,1.61987,118120.0,118110.0,0.2621669]
[1753176197629,1.61987,118120.0,118110.0,1.45267375]
[1753176197931,1.61987,118120.0,118110.0,2.04089375]
[1753176198136,1.61987,118120.0,118110.0,1.99527857]
[1753176198723,1.64221,118120.0,118110.0,1.99527857]
[1753176198930,1.64221,118120.0,118110.0,1.66527857]
[1753176199231,1.8114625,118120.0,118110.0,0.8510369]
[1753176199432,2.77671417,118120.0,118110.0,0.02281132]
[1753176200136,0.3766012,118100.0,118090.0,0.63689425]
[1753176200434,1.3657212,118100.0,118090.0,0.94201592]
[1753176200634,0.82364,118100.0,118090.0,1.80899815]
[1753176200833,0.20732,118100.0,118090.0,1.80899815]
[1753176201135,0.82344,118100.0,118090.0,1.85461333]
[1753176201428,0.82328,118100.0,118090.0,1.46899815]
[1753176201634,0.20732,118100.0,118090.0,1.46899815]
[1753176201837,0.82332,118100.0,118090.0,1.46899815]
[1753176202232,0.82332,118100.0,118090.0,1.51461333]
[1753176202736,0.82332,118100.0,118090.0,1.21821333]
[1753176202933,0.20732,118100.0,118090.0,1.21821333]
[1753176203436,0.9921212,118100.0,118090.0,1.21821333]
[1753176203738,0.9941212,118100.0,118090.0,1.12425815]
[1753176203937,0.82484,118100.0,118090.0,1.12425815]
[1753176204332,0.20732,118100.0,118090.0,0.83980648]
[1753176204537,0.82576,118100.0,118090.0,1.12425815]
[1753176204737,0.82568,118100.0,118090.0,1.12425815]
[1753176205038,0.82568,118100.0,118090.0,1.11433074]
[1753176205237,0.82568,118100.0,118090.0,1.15994592]
[1753176205634,0.9939612,118100.0,118090.0,0.75857907]
[1753176205838,1.0069612,118100.0,118090.0,1.04303074]
[1753176206339,1.0069612,118100.0,118090.0,1.08864592]
[1753176206541,1.0069612,118100.0,118090.0,1.00641592]
[1753176206743,0.83768,118100.0,118090.0,1.00641592]
[1753176207240,0.825,118100.0,118090.0,1.00641592]
[1753176207442,0.82476,118100.0,118090.0,1.42605592]
[1753176207639,0.21032,118100.0,118090.0,1.42605592]
[1753176207838,0.8246,118100.0,118090.0,1.12605592]
[1753176208141,0.81449,118100.0,118090.0,1.41044074]
[1753176208341,0.20021,118100.0,118090.0,1.41044074]
[1753176208642,0.21032,118100.0,118090.0,1.41044074]
[1753176208843,0.20932,118100.0,118090.0,1.41044074]
[1753176209044,0.20932,118100.0,118090.0,1.07044074]
[1753176209343,0.20932,118100.0,118090.0,1.08044074]
[1753176210244,0.3786012,118100.0,118090.0,0.87821907]
[1753176210445,0.3766012,118100.0,118090.0,1.16267074]
[1753176210740,0.20732,118100.0,118090.0,1.16267074]
[1753176210941,0.19721,118100.0,118090.0,1.5383251]
[1753176211239,0.20021,118100.0,118090.0,1.5383251]
[1753176211446,0.20021,118100.0,118090.0,1.53833007]
[1753176212042,0.19721,118100.0,118090.0,1.53833007]
[1753176212243,0.19721,118100.0,118090.0,1.49267074]
[1753176212443,0.19721,118100.0,118090.0,1.53267074]
[1753176212746,0.19721,118100.0,118090.0,1.57833975]
[1753176212947,0.19721,118100.0,118090.0,1.21833975]
[1753176213145,0.19721,118100.0,118090.0,1.54833975]
[1753176213947,0.3766012,118100.0,118090.0,2.18117975]
[1753176214149,0.3768012,118100.0,118090.0,2.18117975]
[1753176214449,0.3768012,118100.0,118090.0,2.06153975]
[1753176214648,0.3884312,118100.0,118090.0,1.41708808]
[1753176214844,0.3884312,118100.0,118090.0,1.70153975]
[1753176215247,0.3914312,118100.0,118090.0,1.70153975]
[1753176215452,0.3914312,118100.0,118090.0,2.03153975]
[1753176215652,0.21052,118100.0,118090.0,2.10283975]
[1753176215853,0.21052,118100.0,118090.0,2.15117975]
[1753176216050,0.12307,118100.0,118090.0,2.10551074]
[1753176216252,0.12307,118100.0,118090.0,2.15118535]
[1753176216451,0.12307,118100.0,118090.0,1.81118535]
[1753176216648,0.12307,118100.0,118090.0,1.83118535]
[1753176216853,0.20041,118100.0,118090.0,2.16118535]
[1753176217354,0.19841,118100.0,118090.0,2.16118535]
[1753176217554,0.19741,118100.0,118090.0,2.16118535]
[1753176217853,0.19741,118100.0,118090.0,2.11551074]
[1753176218154,0.19741,118100.0,118090.0,2.16118675]
[1753176218850,0.12007,118100.0,118090.0,2.16118675]
[1753176219856,0.0002,118100.0,118090.0,2.16118675]
[1753176220351,0.0002,118100.0,118090.0,2.41147074]
[1753176220555,0.16835222,118120.0,118110.0,0.4037466]
[1753176220755,0.06639222,118120.0,118110.0,2.14633029]
[1753176221057,1.63681222,118120.0,118110.0,2.14633029]
[1753176221760,1.63881222,118120.0,118110.0,2.14633029]
[1753176221950,1.64181222,118120.0,118110.0,2.14633029]
[1753176222750,1.64181222,118120.0,118110.0,2.15477266]
[1753176222947,1.64181222,118120.0,118110.0,2.10473266]
[1753176224655,1.57139222,118120.0,118110.0,2.10473266]
[1753176224855,1.57139222,118120.0,118110.0,2.46553266]
[1753176225250,1.52194222,118120.0,118110.0,1.85317266]
[1753176225457,1.52194222,118120.0,118110.0,2.46553266]
[1753176225855,1.56912222,118120.0,118110.0,2.46553266]
[1753176226050,1.52194222,118120.0,118110.0,2.74998433]
[1753176226455,1.52194222,118120.0,118110.0,2.46553266]
[1753176226657,0.02194222,118120.0,118110.0,2.46553266]
[1753176227458,0.01894222,118120.0,118110.0,2.46653266]
[1753176227659,0.01694222,118120.0,118110.0,2.46653266]
[1753176227858,0.01694222,118120.0,118110.0,2.46753266]
[1753176228262,0.01694222,118120.0,118110.0,2.18304099]
[1753176228459,0.01694222,118120.0,118110.0,2.46749266]
[1753176228659,0.06412222,118120.0,118110.0,1.85517266]
[1753176228855,0.13497222,118120.0,118110.0,1.53517266]
[1753176229061,0.21175222,118120.0,118110.0,2.50745266]
[1753176229456,0.21175222,118120.0,118110.0,2.80385266]
[1753176230759,0.21175222,118120.0,118110.0,2.46385266]
[1753176230965,0.22235222,118120.0,118110.0,1.85157266]
[1753176231167,0.22235222,118120.0,118110.0,2.46385266]
[1753176231664,0.22235222,118120.0,118110.0,1.85157266]
[1753176231864,0.22235222,118120.0,118110.0,2.82385266]
[1753176232061,0.39160452,118120.0,118110.0,2.31577029]
[1753176232268,0.39160452,118120.0,118110.0,1.64461569]
[1753176232564,0.39160452,118120.0,118110.0,1.59894387]
[1753176232762,0.40315452,118120.0,118110.0,1.59894387]
[1753176232960,0.40315452,118120.0,118110.0,1.3144922]
[1753176233164,0.40315452,118120.0,118110.0,1.59894387]
[1753176233364,0.76395452,118120.0,118110.0,1.59894387]
[1753176233665,1.37619452,118120.0,118110.0,1.56849847]
[1753176233865,1.37619452,118120.0,118110.0,0.95621847]
[1753176235068,1.37619452,118120.0,118110.0,1.00188117]
[1753176235267,1.37619452,118120.0,118110.0,0.70548117]
[1753176236069,1.37619452,118120.0,118110.0,0.4210295]
[1753176236269,1.37619452,118120.0,118110.0,0.70548117]
[1753176236469,0.75240452,118120.0,118110.0,0.70548117]
[1753176236671,1.36464452,118120.0,118110.0,0.82319117]
[1753176236970,1.74619452,118120.0,118110.0,0.63622097]
[1753176237170,1.74639452,118120.0,118110.0,0.55399097]
[1753176237864,1.74639452,118120.0,118110.0,0.0676627]
[1753176238069,1.74639452,118120.0,118110.0,0.2369293]
[1753176238269,1.74639452,118120.0,118110.0,0.2124166]
[1753176238461,1.74639452,118120.0,118110.0,0.49686827]
[1753176238970,1.74639452,118120.0,118110.0,0.25807429]
[1753176239172,1.74639452,118120.0,118110.0,0.52137596]
[1753176239468,1.74639452,118120.0,118110.0,0.23692429]
[1753176240370,1.75469596,118120.0,118110.0,0.23692429]
[1753176240667,0.24240366,118120.0,118110.0,0.58482827]
[1753176240971,1.00400442,118120.0,118110.0,1.10415851]
[1753176241167,0.83475222,118120.0,118110.0,1.10415851]
[1753176241369,0.83475222,118120.0,118110.0,1.48415851]
[1753176241872,1.00400442,118120.0,118110.0,0.75335851]
[1753176242573,1.00400442,118120.0,118110.0,1.05335851]
[1753176242767,0.83475222,118120.0,118110.0,1.43415851]
[1753176242968,1.00400452,118120.0,118110.0,1.43415851]
[1753176243271,1.00400452,118120.0,118110.0,1.07335851]
[1753176243472,1.00400452,118120.0,118110.0,0.75335851]
[1753176243669,1.00400452,118120.0,118110.0,1.06335851]
[1753176243968,1.00400452,118120.0,118110.0,0.74335851]
[1753176244172,1.00400452,118120.0,118110.0,1.46415851]
[1753176244672,1.00400452,118120.0,118110.0,1.5000287]
[1753176244875,1.01555452,118120.0,118110.0,1.68677037]
[1753176245174,1.01555452,118120.0,118110.0,1.62595013]
[1753176245566,1.36555452,118120.0,118110.0,1.62595013]
[1753176245766,1.01555452,118120.0,118110.0,1.01375013]
[1753176246172,1.39555452,118120.0,118110.0,1.01275013]
[1753176246373,1.01555452,118120.0,118110.0,1.07357037]
[1753176246568,1.01555452,118120.0,118110.0,0.71277037]
[1753176246775,1.01555452,118120.0,118110.0,0.36749846]
[1753176247070,1.01555452,118120.0,118110.0,0.50578827]
[1753176247574,1.37555452,118120.0,118110.0,0.50578827]
[1753176247774,1.01555452,118120.0,118110.0,0.50578827]
[1753176248176,1.01555452,118120.0,118110.0,0.53623979]
[1753176250375,1.37635452,118120.0,118110.0,0.53623979]
[1753176252279,1.73635452,118120.0,118110.0,0.53623979]
[1753176252572,1.73635452,118120.0,118110.0,0.35605319]
[1753176252778,1.73635452,118120.0,118110.0,0.05045152]
[1753176253271,1.73635452,118120.0,118110.0,0.21971812]
[1753176253473,1.37627452,118120.0,118110.0,0.59275436]
[1753176253667,1.36472452,118120.0,118110.0,0.71046436]
[1753176254078,1.00392452,118120.0,118110.0,0.69046436]
[1753176254278,1.00392442,118120.0,118110.0,1.04046436]
[1753176254680,0.39380442,118120.0,118110.0,1.04046436]
[1753176254977,1.00788442,118120.0,118110.0,1.04046436]
[1753176255182,0.39580442,118120.0,118110.0,1.04046436]
[1753176255370,0.83863222,118120.0,118110.0,1.40126436]
[1753176255574,0.82803222,118120.0,118110.0,1.44694164]
[1753176255874,0.82803222,118120.0,118110.0,1.47694164]
[1753176256073,0.99728442,118120.0,118110.0,1.47694164]
[1753176256374,0.82603222,118120.0,118110.0,1.47694112]
[1753176256575,0.82703222,118120.0,118110.0,1.46694112]
[1753176256775,0.99628442,118120.0,118110.0,1.41694112]
[1753176256976,0.99428442,118120.0,118110.0,1.41694112]
[1753176257176,0.99428442,118120.0,118110.0,1.37126384]
[1753176257377,1.00388442,118120.0,118110.0,1.37126384]
[1753176257782,0.83463222,118120.0,118110.0,1.37126384]
[1753176258080,0.82399222,118120.0,118110.0,1.43771866]
[1753176258881,0.82399222,118120.0,118110.0,1.41779309]
[1753176259080,0.82399222,118120.0,118110.0,1.10779309]
[1753176259278,0.99324452,118120.0,118110.0,1.12779309]
[1753176259478,0.99324452,118120.0,118110.0,1.11699309]
[1753176259982,1.00383452,118120.0,118110.0,1.11699309]
[1753176260276,1.00383452,118120.0,118110.0,0.48254142]
[1753176260484,1.00383452,118120.0,118110.0,1.08699309]
[1753176260677,1.00383452,118120.0,118110.0,0.74699309]
[1753176260878,1.00383452,118120.0,118110.0,1.12699309]
[1753176261485,1.00383452,118120.0,118110.0,1.17269466]
[1753176261681,0.39179452,118120.0,118110.0,1.17269466]
[1753176261878,0.83450222,118120.0,118110.0,1.17269466]
[1753176262076,0.16625222,118120.0,118110.0,1.17269466]
[1753176262389,0.74713222,118120.0,118110.0,1.48779309]
[1753176262884,0.74713222,118120.0,118110.0,1.54861333]
[1753176263579,0.67628222,118120.0,118110.0,1.54861333]
[1753176263980,0.74170222,118120.0,118110.0,1.54861333]
[1753176264286,0.12974222,118120.0,118110.0,1.54861333]
[1753176264885,0.12974222,118120.0,118110.0,0.88416166]
[1753176265082,0.20629222,118120.0,118110.0,1.48861333]
[1753176265684,0.74693442,118120.0,118110.0,0.42565166]
[1753176265887,1.68960442,118120.0,118110.0,0.28779142]
[1753176266191,1.36960442,118120.0,118110.0,0.26705353]
[1753176266788,1.36960442,118120.0,118110.0,0.7465352]
[1753176266789,1.18956222,118120.0,118110.0,0.7465352]
[1753176267088,1.35881442,118120.0,118110.0,0.7465352]
[1753176267489,1.35881442,118120.0,118110.0,0.7009952]
[1753176267689,0.74693442,118120.0,118110.0,0.7009952]
[1753176267891,1.35881442,118120.0,118110.0,0.7465352]
[1753176268190,1.18956222,118120.0,118110.0,0.7465352]
[1753176268392,1.35881442,118120.0,118110.0,0.7465352]
[1753176268585,0.82876222,118120.0,118110.0,1.1073352]
[1753176268786,0.82876222,118120.0,118110.0,1.04161827]
[1753176269085,0.82876222,118120.0,118110.0,1.35161827]
[1753176269282,0.81813222,118120.0,118110.0,1.35161827]
[1753176269492,0.81813222,118120.0,118110.0,1.39732329]
[1753176269886,0.81813222,118120.0,118110.0,1.35161827]
[1753176270182,0.77440222,118120.0,118110.0,1.35161827]
[1753176270390,0.12974222,118120.0,118110.0,1.35161827]
[1753176271790,0.12974222,118120.0,118110.0,1.13458555]
[1753176271990,0.12974222,118120.0,118110.0,1.41903722]
[1753176273692,0.16256222,118120.0,118110.0,1.41903722]
[1753176275190,0.16256222,118120.0,118110.0,1.10903722]
[1753176275390,0.16256222,118120.0,118110.0,1.54985746]
[1753176275788,0.16256222,118120.0,118110.0,1.16985746]
[1753176275990,0.16256222,118120.0,118110.0,1.54985746]
[1753176276189,0.20629222,118120.0,118110.0,1.54985746]
[1753176276594,0.20629222,118120.0,118110.0,1.18985746]
[1753176276793,0.37554442,118120.0,118110.0,1.17985746]
[1753176276994,0.38613442,118120.0,118110.0,1.17985746]
[1753176277183,0.38613442,118120.0,118110.0,0.70233746]
[1753176277384,0.39692442,118120.0,118110.0,0.64151722]
[1753176277591,0.39692442,118120.0,118110.0,0.68722671]
[1753176277791,0.38613442,118120.0,118110.0,0.75840671]
[1753176279792,0.38613442,118120.0,118110.0,0.68722671]
[1753176280187,0.39635442,118120.0,118110.0,0.68722671]
[1753176280991,0.72635442,118120.0,118110.0,0.54149776]
[1753176281297,0.74635442,118120.0,118110.0,0.54149776]
[1753176281597,0.39635442,118120.0,118110.0,0.54149776]
[1753176282496,0.39635442,118120.0,118110.0,0.25704609]
[1753176282694,0.39635442,118120.0,118110.0,0.54149776]
[1753176282894,0.73635442,118120.0,118110.0,0.25704609]
[1753176283796,0.71635442,118120.0,118110.0,0.25704609]
[1753176284095,0.20629222,118120.0,118110.0,1.4015445]
[1753176284291,0.20629222,118120.0,118110.0,1.44725399]
[1753176284593,0.01714222,118120.0,118110.0,1.43732776]
[1753176284896,0.01714222,118120.0,118110.0,1.08732776]
[1753176285091,0.01714222,118120.0,118110.0,1.46732776]
[1753176285292,0.01714222,118120.0,118110.0,1.533662]
[1753176286698,0.01714222,118120.0,118110.0,1.534662]
[1753176286890,0.11074,118130.0,118120.0,0.1692522]
[1753176287089,0.0475,118150.0,118130.0,0.2131122]
[1753176287393,0.11308,118160.0,118150.0,0.3904393]
[1753176287600,0.11308,118160.0,118150.0,1.37569097]
[1753176288402,0.11308,118160.0,118150.0,1.38406253]
[1753176288896,0.11808,118160.0,118150.0,1.38406253]
[1753176289898,0.008,118160.0,118150.0,1.38406253]
[1753176290299,1.508,118160.0,118150.0,1.04406253]
[1753176290496,1.508,118160.0,118150.0,1.41406253]
[1753176290697,1.506,118160.0,118150.0,1.41406253]
[1753176290889,0.006,118160.0,118150.0,1.41406253]
[1753176291397,0.11908,118160.0,118150.0,1.41406253]
[1753176291900,0.005,118160.0,118150.0,1.6985142]
[1753176292402,0.11308,118180.0,118170.0,0.2553706]
[1753176292599,0.11308,118180.0,118170.0,1.36566227]
[1753176293505,0.11708,118180.0,118170.0,1.36566227]
[1753176294105,0.14755,118180.0,118170.0,1.44341077]
[1753176294302,0.19034,118180.0,118170.0,1.44341077]
[1753176294704,0.19034,118180.0,118170.0,1.10341077]
[1753176294903,0.19034,118180.0,118170.0,1.43341077]
[1753176295701,0.19034,118180.0,118170.0,1.79421077]
[1753176295909,0.18634,118180.0,118170.0,1.43341077]
[1753176296102,0.18934,118180.0,118170.0,1.43341077]
[1753176296300,0.11608,118180.0,118170.0,1.43341077]
[1753176296609,0.14355,118190.0,118180.0,0.2107263]
[1753176296797,0.14355,118190.0,118180.0,1.03564797]
[1753176297003,0.18634,118190.0,118180.0,1.39849758]
[1753176298508,0.18734,118190.0,118180.0,1.39849758]
[1753176298808,0.18934,118190.0,118180.0,1.39849758]
[1753176299812,0.14655,118190.0,118180.0,1.39849758]
[1753176300205,0.18934,118190.0,118180.0,1.05849758]
[1753176300504,0.368202,118190.0,118180.0,1.05849758]
[1753176300705,0.383252,118190.0,118180.0,0.2762963]
[1753176300908,0.383252,118190.0,118180.0,0.56074797]
[1753176301209,1.38850367,118190.0,118180.0,0.03157]
[1753176301602,0.743252,118190.0,118180.0,0.2007363]
[1753176301803,0.744052,118190.0,118180.0,0.48518797]
[1753176302005,0.744052,118190.0,118180.0,0.56074797]
[1753176302506,0.55985,118190.0,118180.0,0.62893797]
[1753176302708,0.55985,118190.0,118180.0,0.67484797]
[1753176302908,0.55985,118190.0,118180.0,0.99484797]
[1753176303109,0.18934,118190.0,118180.0,1.35564797]
[1753176304014,0.003,118190.0,118180.0,1.37849758]
[1753176304213,0.0032,118190.0,118180.0,1.37849758]
[1753176304512,0.11308,118200.0,118190.0,0.255342]
[1753176304811,0.11308,118210.0,118200.0,0.2553277]
[1753176305011,0.11308,118210.0,118200.0,1.34757521]
[1753176305309,0.11308,118210.0,118200.0,1.70837521]
[1753176305507,0.68018028,118240.0,118230.0,0.1690948]
[1753176305708,1.20110028,118240.0,118230.0,0.48311647]
[1753176305907,1.36182983,118240.0,118230.0,0.48311647]
[1753176306112,1.19267783,118240.0,118230.0,0.48311647]
[1753176306515,1.13535493,118240.0,118230.0,0.62686647]
[1753176307014,0.49828253,118240.0,118230.0,0.62686647]
[1753176307207,0.49828253,118240.0,118230.0,0.72037953]
[1753176307208,0.32919013,118240.0,118230.0,0.72037953]
[1753176307405,0.49827063,118240.0,118230.0,0.72037953]
[1753176308617,0.4811305,118240.0,118230.0,0.72037953]
[1753176308915,0.20505,118240.0,118230.0,0.72037953]
[1753176309116,0.009,118240.0,118230.0,1.46117953]
[1753176309316,1.509,118240.0,118230.0,1.46117953]
[1753176309710,0.009,118240.0,118230.0,1.46117953]
[1753176310112,0.11308,118260.0,118250.0,0.3902962]
[1753176310313,0.11308,118260.0,118250.0,1.46315093]
[1753176310506,0.11308,118260.0,118250.0,1.40315093]
[1753176310716,0.2821319,118260.0,118250.0,0.72235093]
[1753176310918,0.3651019,118260.0,118250.0,0.79023992]
[1753176311814,0.3651019,118260.0,118250.0,0.74432992]
[1753176312016,0.3651019,118260.0,118250.0,1.15103992]
[1753176312316,0.3671019,118260.0,118250.0,1.15103992]
[1753176313207,0.19805,118260.0,118250.0,1.15103992]
[1753176313407,0.3671019,118260.0,118250.0,0.79023992]
[1753176313615,0.3671019,118260.0,118250.0,0.45818519]
[1753176313814,0.3671019,118260.0,118250.0,0.79023992]
[1753176314117,0.3872219,118260.0,118250.0,0.74432992]
[1753176314316,0.3852219,118260.0,118250.0,0.74432992]
[1753176314910,0.7552219,118260.0,118250.0,0.34408519]
[1753176315110,1.1160219,118260.0,118250.0,0.01063]
[1753176315310,0.4697745,118250.0,118240.0,0.2006505]
[1753176315516,0.8305745,118250.0,118240.0,0.2006505]
[1753176316115,0.55685,118250.0,118240.0,0.72424523]
[1753176316411,0.11888,118260.0,118250.0,0.3228362]
[1753176316617,0.2879319,118260.0,118250.0,0.72485093]
[1753176316817,0.3731719,118260.0,118250.0,0.72485093]
[1753176317208,0.3731719,118260.0,118250.0,1.08565093]
[1753176317416,0.3731719,118260.0,118250.0,0.72485093]
[1753176317811,0.3731719,118260.0,118250.0,1.08565093]
[1753176318009,0.3741719,118260.0,118250.0,0.72485093]
[1753176318410,0.3731719,118260.0,118250.0,1.08765093]
[1753176318609,0.20412,118260.0,118250.0,1.08765093]
[1753176319616,0.3731719,118260.0,118250.0,1.08765093]
[1753176320717,0.3731719,118260.0,118250.0,0.72685093]
[1753176320918,0.7128719,118260.0,118250.0,0.44180473]
[1753176321222,0.7128719,118260.0,118250.0,0.01195]
[1753176321223,1.0736719,118260.0,118250.0,0.01195]
[1753176321517,1.0738719,118260.0,118250.0,0.002]
[1753176321722,1.40592663,118260.0,118250.0,0.002]
[1753176322017,0.1690804,118240.0,118230.0,0.38184]
[1753176323219,0.1691091,118220.0,118210.0,0.60676693]
[1753176323425,0.3931291,118220.0,118210.0,0.63671693]
[1753176323825,0.3931291,118220.0,118210.0,0.2001014]
[1753176324927,0.3931291,118220.0,118210.0,0.2041014]
[1753176325329,0.3931291,118220.0,118210.0,0.89695613]
[1753176325530,0.3931291,118220.0,118210.0,0.97371613]
[1753176325732,0.3931291,118220.0,118210.0,0.97971613]
[1753176325931,0.0002,118220.0,118210.0,1.44569613]
[1753176326722,0.11888,118240.0,118230.0,0.3928249]
[1753176326927,0.13586983,118250.0,118240.0,0.2458406]
[1753176327129,0.11888,118250.0,118240.0,1.08566533]
[1753176327328,0.2879463,118250.0,118240.0,1.08566533]
[1753176327832,0.3180063,118250.0,118240.0,1.08566533]
[1753176328034,0.3277763,118250.0,118240.0,1.08666533]
[1753176329232,0.3731863,118250.0,118240.0,1.08666533]
[1753176329835,0.3731863,118250.0,118240.0,1.13202526]
[1753176330842,0.20412,118250.0,118240.0,1.13202526]
[1753176331731,0.3731862,118250.0,118240.0,1.08510526]
[1753176332137,0.3731862,118250.0,118240.0,1.03963195]
[1753176332338,0.20412,118250.0,118240.0,1.08855195]
[1753176332535,0.3731863,118250.0,118240.0,1.08855195]
[1753176332739,0.3731863,118250.0,118240.0,0.72440779]
[1753176332930,0.3928863,118250.0,118240.0,0.65734779]
[1753176333131,0.7536863,118250.0,118240.0,0.24853306]
[1753176334133,1.1036863,118250.0,118240.0,0.24853306]
[1753176334333,0.7536863,118250.0,118240.0,0.24753306]
[1753176334639,1.0736863,118250.0,118240.0,0.24753306]
[1753176334839,1.0736863,118250.0,118240.0,0.24653306]
[1753176335637,1.0736863,118250.0,118240.0,0.04646246]
[1753176335835,1.0736863,118250.0,118240.0,0.21554306]
[1753176337337,0.7128863,118250.0,118240.0,0.32329306]
[1753176337726,0.15971,118250.0,118240.0,1.50212779]
[1753176337931,0.14994,118250.0,118240.0,1.08666533]
[1753176338137,0.14994,118250.0,118240.0,1.08566533]
[1753176338834,0.14894,118250.0,118240.0,1.08666533]
[1753176339430,0.14894,118250.0,118240.0,0.72586533]
[1753176339836,0.14894,118250.0,118240.0,1.08666533]
[1753176340032,0.14894,118250.0,118240.0,1.08766533]
[1753176340433,0.14894,118250.0,118240.0,1.11040047]
[1753176340635,0.14894,118250.0,118240.0,0.74960047]
[1753176340944,0.14894,118250.0,118240.0,1.11040047]
[1753176341240,0.14894,118250.0,118240.0,1.11140047]
[1753176342035,0.11888,118250.0,118240.0,1.11140047]
[1753176342238,0.14894,118260.0,118250.0,0.2557762]
[1753176342438,0.19435,118260.0,118250.0,1.08565093]
[1753176342637,0.20412,118260.0,118250.0,1.08565093]
[1753176342838,0.363402,118260.0,118250.0,0.72485093]
[1753176343540,0.373172,118260.0,118250.0,0.72485093]
[1753176343842,0.373372,118260.0,118250.0,0.72485093]
[1753176344839,0.20432,118260.0,118250.0,0.72585093]
[1753176345039,0.373372,118260.0,118250.0,0.72585093]
[1753176346238,0.373372,118260.0,118250.0,0.74858607]
[1753176346239,0.20432,118260.0,118250.0,0.74858607]
[1753176347343,0.20432,118260.0,118250.0,0.72585093]
[1753176348142,0.20432,118260.0,118250.0,0.74858607]
[1753176348342,0.20432,118260.0,118250.0,0.75616445]
[1753176348738,0.392042,118260.0,118250.0,0.70724455]
[1753176348942,0.392042,118260.0,118250.0,0.30812982]
[1753176349138,0.74942741,118260.0,118250.0,0.06230352]
[1753176349341,1.11022741,118260.0,118250.0,0.06230352]
[1753176349838,1.61141014,118260.0,118250.0,0.0237262]
[1753176350635,0.3840862,118250.0,118240.0,0.03031352]
[1753176350838,1.44714093,118250.0,118240.0,0.03031352]
[1753176351038,1.44714093,118250.0,118240.0,0.27519402]
[1753176351039,1.1150862,118250.0,118240.0,0.27519402]
[1753176351235,0.3842862,118250.0,118240.0,0.70243875]
[1753176351437,0.7356162,118250.0,118240.0,0.79555904]
[1753176351633,0.6756162,118250.0,118240.0,0.79555904]
[1753176351839,0.19655,118250.0,118240.0,1.12604552]
[1753176352035,0.04644,118250.0,118240.0,1.13596019]
[1753176352239,0.0012,118250.0,118240.0,1.47604552]
[1753176352544,0.0012,118250.0,118240.0,1.43057523]
[1753176352744,0.0012,118250.0,118240.0,1.49220631]
[1753176353047,0.0012,118250.0,118240.0,1.43157523]
[1753176353344,0.0012,118250.0,118240.0,1.43057523]
[1753176353545,0.0012,118250.0,118240.0,1.43257523]
[1753176353744,0.0002,118250.0,118240.0,1.43257523]
[1753176353948,0.0002,118250.0,118240.0,1.08257523]
[1753176354144,0.0002,118250.0,118240.0,1.45257523]
[1753176354345,0.0002,118250.0,118240.0,1.51320631]
[1753176354543,0.0002,118250.0,118240.0,1.51420631]
[1753176355248,0.0002,118250.0,118240.0,1.49420631]
[1753176355848,0.1692662,118250.0,118240.0,1.49420631]
[1753176356048,0.2145062,118250.0,118240.0,1.14420631]
[1753176356548,0.04544,118250.0,118240.0,1.14420631]
[1753176358149,0.2145063,118250.0,118240.0,1.14420631]
[1753176358349,0.04544,118250.0,118240.0,1.14420631]
[1753176358843,1.54544,118250.0,118240.0,1.14420631]
[1753176359748,1.61236,118250.0,118240.0,1.14420631]
[1753176360149,1.54544,118250.0,118240.0,1.14420631]
[1753176360450,1.5002,118250.0,118240.0,1.45420631]
[1753176362146,0.0002,118250.0,118240.0,1.45420631]
[1753176362344,0.01738541,118260.0,118250.0,0.3877062]
[1753176362655,0.11216,118270.0,118260.0,0.3876919]
[1753176362854,0.11216,118270.0,118260.0,1.19474821]
[1753176363050,0.11216,118270.0,118260.0,1.57474821]
[1753176363354,0.11216,118270.0,118260.0,1.12612648]
[1753176363956,0.3116977,118270.0,118260.0,1.12612648]
[1753176364155,0.3653877,118270.0,118260.0,1.12612648]
[1753176364858,0.3663877,118270.0,118260.0,1.12612648]
[1753176365053,0.7458577,118270.0,118260.0,0.21656985]
[1753176365253,1.1158577,118270.0,118260.0,0.10618527]
[1753176365454,1.1168577,118270.0,118260.0,0.10618527]